[Event "Titled Tuesday Blitz November 14 Late 2023"]
[White "YouShallNotPass001"]
[Black "Silvestre, Christian"]
[BlackFideId "30956269"]
[WhiteElo "2483"]
[BlackElo "2250"]
[Result "0-1"]
[Round "6"]
[TimeControl "180+1"]
[Date "2023.11.14"]
[WhiteClock "0:00:10"]
[BlackClock "0:00:30"]
[Board "83"]

1. Nf3 {[%clk 0:03:00]}  Nf6 {[%clk 0:02:58]} 2. e3 {[%clk 0:03:01]}  b6 {[%clk 0:02:57]} 3. Be2 {[%clk 0:03:02]}  Bb7 {[%clk 0:02:57]} 4. O-O {[%clk 0:03:03]}  e6 {[%clk 0:02:57]} 5. d4 {[%clk 0:03:03]}  Be7 {[%clk 0:02:56]} 6. c4 {[%clk 0:03:04]}  O-O {[%clk 0:02:56]} 7. Nc3 {[%clk 0:03:04]}  c5 {[%clk 0:02:57]} 8. a3 {[%clk 0:03:01]}  cxd4 {[%clk 0:02:57]} 9. exd4 {[%clk 0:03:00]}  d6 {[%clk 0:02:57]} 10. b4 {[%clk 0:03:00]}  a6 {[%clk 0:02:53]} 11. h3 {[%clk 0:03:00]}  Nbd7 {[%clk 0:02:52]} 12. Be3 {[%clk 0:03:00]}  Rc8 {[%clk 0:02:51]} 13. Rc1 {[%clk 0:02:57]}  Qc7 {[%clk 0:02:50]} 14. d5 {[%clk 0:02:36]}  e5 {[%clk 0:02:41]} 15. a4 {[%clk 0:02:30]}  Rfe8 {[%clk 0:02:37]} 16. Ra1 {[%clk 0:02:25]}  Bf8 {[%clk 0:02:23]} 17. Ra3 {[%clk 0:02:22]}  g6 {[%clk 0:02:15]} 18. Nd2 {[%clk 0:02:22]}  Bg7 {[%clk 0:02:12]} 19. a5 {[%clk 0:02:19]}  bxa5 {[%clk 0:02:10]} 20. Rxa5 {[%clk 0:02:18]}  Nb6 {[%clk 0:02:05]} 21. Qb3 {[%clk 0:02:09]}  Nfd7 {[%clk 0:01:57]} 22. Rfa1 {[%clk 0:01:49]}  f5 {[%clk 0:01:55]} 23. b5 {[%clk 0:01:49]}  Nc5 {[%clk 0:01:47]} 24. Bxc5 {[%clk 0:01:48]}  dxc5 {[%clk 0:01:47]} 25. bxa6 {[%clk 0:01:48]}  Ba8 {[%clk 0:01:47]} 26. Rb5 {[%clk 0:01:32]}  Nd7 {[%clk 0:01:44]} 27. a7 {[%clk 0:01:26]}  e4 {[%clk 0:01:41]} 28. Nf1 {[%clk 0:01:17]}  f4 {[%clk 0:01:34]} 29. Bg4 {[%clk 0:01:16]}  h5 {[%clk 0:01:26]} 30. Be6+ {[%clk 0:01:15]}  Kh7 {[%clk 0:01:25]} 31. Ra6 {[%clk 0:01:03]}  e3 {[%clk 0:01:17]} 32. fxe3 {[%clk 0:00:52]}  fxe3 {[%clk 0:01:17]} 33. Ne2 {[%clk 0:00:52]}  Bd4 {[%clk 0:01:04]} 34. Qd3 {[%clk 0:00:44]}  Ne5 {[%clk 0:01:01]} 35. Qe4 {[%clk 0:00:43]}  Nxc4 {[%clk 0:00:57]} 36. Nfg3 {[%clk 0:00:30]}  Nd6 {[%clk 0:00:54]} 37. Rxd6 {[%clk 0:00:19]}  Qxd6 {[%clk 0:00:54]} 38. Nxh5 {[%clk 0:00:14]}  Rxe6 {[%clk 0:00:53]} 39. Qxe6 {[%clk 0:00:13]}  Qxe6 {[%clk 0:00:54]} 40. dxe6 {[%clk 0:00:13]}  Be5 {[%clk 0:00:43]} 41. Nhf4 {[%clk 0:00:11]}  Be4 {[%clk 0:00:34]} 42. e7 {[%clk 0:00:10]}  Re8 {[%clk 0:00:31]} 43. Ra5 {[%clk 0:00:10]}  Rxe7 {[%clk 0:00:31]} 44. a8=Q {[%clk 0:00:09]}  Bxa8 {[%clk 0:00:31]} 45. Rxa8 {[%clk 0:00:10]}  Bxf4 {[%clk 0:00:31]} 46. Nxf4 {[%clk 0:00:11]}  e2 {[%clk 0:00:31]} 47. Nxe2 {[%clk 0:00:12]}  Rxe2 {[%clk 0:00:31]} 48. Rc8 {[%clk 0:00:12]}  Rc2 {[%clk 0:00:32]} 49. Kf1 {[%clk 0:00:13]}  c4 {[%clk 0:00:32]} 50. Kg1 {[%clk 0:00:13]}  Kh6 {[%clk 0:00:33]} 51. Kh2 {[%clk 0:00:14]}  Kg5 {[%clk 0:00:33]} 52. Kg3 {[%clk 0:00:15]}  Rc3+ {[%clk 0:00:32]} 53. Kf2 {[%clk 0:00:14]}  Kf5 {[%clk 0:00:33]} 54. Rc5+ {[%clk 0:00:14]}  Kf4 {[%clk 0:00:32]} 55. Rc6 {[%clk 0:00:14]}  g5 {[%clk 0:00:32]} 56. Rc8 {[%clk 0:00:13]}  Kf5 {[%clk 0:00:32]} 57. Rc5+ {[%clk 0:00:13]}  Kg6 {[%clk 0:00:32]} 58. Rc6+ {[%clk 0:00:12]}  Kh5 {[%clk 0:00:32]} 59. Rc5 {[%clk 0:00:12]}  Kg6 {[%clk 0:00:31]} 60. Rc6+ {[%clk 0:00:11]}  Kf5 {[%clk 0:00:31]} 61. Rc5+ {[%clk 0:00:12]}  Kf4 {[%clk 0:00:32]} 62. Rc8 {[%clk 0:00:11]}  Rc2+ {[%clk 0:00:32]} 63. Kg1 {[%clk 0:00:11]}  Kg3 {[%clk 0:00:30]} 64. Rc5 {[%clk 0:00:10]}  Rc1# {[%clk 0:00:30]} 0-1


[Site "https://www.chess.com"]

[Event "Titled Tuesday Blitz November 14 Late 2023"]
[White "TheAlienParty"]
[Black "Willy, Stephen"]
[BlackFideId "30981468"]
[WhiteElo "2375"]
[BlackElo "2466"]
[Result "1/2-1/2"]
[Round "6"]
[TimeControl "180+1"]
[Date "2023.11.14"]
[WhiteClock "0:00:17"]
[BlackClock "0:00:00"]
[Board "84"]

1. c4 {[%clk 0:02:56]}  e5 {[%clk 0:02:58]} 2. Nc3 {[%clk 0:02:55]}  c6 {[%clk 0:02:55]} 3. d4 {[%clk 0:02:53]}  exd4 {[%clk 0:02:49]} 4. Qxd4 {[%clk 0:02:53]}  Nf6 {[%clk 0:02:50]} 5. g3 {[%clk 0:02:46]}  d5 {[%clk 0:02:42]} 6. Bg2 {[%clk 0:02:39]}  Be7 {[%clk 0:02:39]} 7. Bf4 {[%clk 0:02:27]}  c5 {[%clk 0:02:36]} 8. Qd2 {[%clk 0:02:19]}  d4 {[%clk 0:02:33]} 9. Nb5 {[%clk 0:02:18]}  Na6 {[%clk 0:02:33]} 10. Nf3 {[%clk 0:02:12]}  Nh5 {[%clk 0:02:20]} 11. O-O {[%clk 0:01:54]}  O-O {[%clk 0:02:14]} 12. Rad1 {[%clk 0:01:52]}  Nxf4 {[%clk 0:01:56]} 13. Qxf4 {[%clk 0:01:48]}  Qb6 {[%clk 0:01:44]} 14. e3 {[%clk 0:01:22]}  Be6 {[%clk 0:01:31]} 15. b3 {[%clk 0:01:18]}  dxe3 {[%clk 0:01:29]} 16. fxe3 {[%clk 0:01:09]}  Nb4 {[%clk 0:01:24]} 17. Rf2 {[%clk 0:01:03]}  Rad8 {[%clk 0:01:23]} 18. Rfd2 {[%clk 0:01:02]}  Rxd2 {[%clk 0:01:11]} 19. Rxd2 {[%clk 0:01:02]}  a6 {[%clk 0:01:12]} 20. Nc3 {[%clk 0:01:01]}  Rd8 {[%clk 0:01:08]} 21. e4 {[%clk 0:00:55]}  Rxd2 {[%clk 0:00:56]} 22. Qxd2 {[%clk 0:00:53]}  Qd6 {[%clk 0:00:53]} 23. Nd5 {[%clk 0:00:52]}  Nc6 {[%clk 0:00:40]} 24. Qf4 {[%clk 0:00:51]}  h6 {[%clk 0:00:31]} 25. Kf2 {[%clk 0:00:50]}  Qd8 {[%clk 0:00:25]} 26. Nxe7+ {[%clk 0:00:44]}  Qxe7 {[%clk 0:00:24]} 27. Ne5 {[%clk 0:00:39]}  Nd4 {[%clk 0:00:18]} 28. Nd3 {[%clk 0:00:38]}  Nc6 {[%clk 0:00:11]} 29. h3 {[%clk 0:00:37]}  Nb4 {[%clk 0:00:12]} 30. Nxb4 {[%clk 0:00:36]}  cxb4 {[%clk 0:00:12]} 31. e5 {[%clk 0:00:33]}  Qd8 {[%clk 0:00:13]} 32. Qe3 {[%clk 0:00:32]}  Qa5 {[%clk 0:00:10]} 33. Qd2 {[%clk 0:00:31]}  Qxe5 {[%clk 0:00:10]} 34. Qd8+ {[%clk 0:00:31]}  Kh7 {[%clk 0:00:10]} 35. Qd3+ {[%clk 0:00:31]}  Bf5 {[%clk 0:00:09]} 36. Qe2 {[%clk 0:00:31]}  Qxe2+ {[%clk 0:00:08]} 37. Kxe2 {[%clk 0:00:31]}  Bb1 {[%clk 0:00:09]} 38. Bxb7 {[%clk 0:00:30]}  Bxa2 {[%clk 0:00:09]} 39. Bxa6 {[%clk 0:00:31]}  Bxb3 {[%clk 0:00:10]} 40. c5 {[%clk 0:00:31]}  Bd5 {[%clk 0:00:10]} 41. Bb5 {[%clk 0:00:31]}  b3 {[%clk 0:00:10]} 42. Kd2 {[%clk 0:00:31]}  Kg6 {[%clk 0:00:06]} 43. c6 {[%clk 0:00:31]}  Kf6 {[%clk 0:00:07]} 44. c7 {[%clk 0:00:30]}  Be6 {[%clk 0:00:07]} 45. Ba6 {[%clk 0:00:30]}  Bxh3 {[%clk 0:00:07]} 46. c8=Q {[%clk 0:00:29]}  Bxc8 {[%clk 0:00:08]} 47. Bxc8 {[%clk 0:00:30]}  Ke5 {[%clk 0:00:06]} 48. Kc3 {[%clk 0:00:30]}  Ke4 {[%clk 0:00:06]} 49. Bb7+ {[%clk 0:00:28]}  Kf5 {[%clk 0:00:05]} 50. Bf3 {[%clk 0:00:27]}  g5 {[%clk 0:00:02]} 51. Kxb3 {[%clk 0:00:26]}  Kg6 {[%clk 0:00:03]} 52. Kc4 {[%clk 0:00:25]}  f5 {[%clk 0:00:03]} 53. Kd5 {[%clk 0:00:25]}  h5 {[%clk 0:00:02]} 54. Ke5 {[%clk 0:00:24]}  h4 {[%clk 0:00:02]} 55. gxh4 {[%clk 0:00:20]}  gxh4 {[%clk 0:00:02]} 56. Kf4 {[%clk 0:00:19]}  Kf6 {[%clk 0:00:03]} 57. Bh1 {[%clk 0:00:15]}  Kg6 {[%clk 0:00:03]} 58. Bg2 {[%clk 0:00:15]}  Kf6 {[%clk 0:00:03]} 59. Bh3 {[%clk 0:00:15]}  Kg6 {[%clk 0:00:03]} 60. Bxf5+ {[%clk 0:00:16]}  Kf6 {[%clk 0:00:00]} 61. Bh3 {[%clk 0:00:17]} 1/2-1/2


[Site "https://www.chess.com"]

[Event "Titled Tuesday Blitz November 14 Late 2023"]
[White "Kovalevsky, Stanislav"]
[Black "Tristan, Leonardo"]
[WhiteFideId "13508598"]
[BlackFideId "113816"]
[WhiteElo "2447"]
[BlackElo "2692"]
[Result "0-1"]
[Round "6"]
[TimeControl "180+1"]
[Date "2023.11.14"]
[WhiteClock "0:00:25"]
[BlackClock "0:01:29"]
[Board "86"]

1. e4 {[%clk 0:03:00]}  d5 {[%clk 0:02:59]} 2. exd5 {[%clk 0:02:57]}  Qxd5 {[%clk 0:03:00]} 3. Nf3 {[%clk 0:02:57]}  Bg4 {[%clk 0:02:59]} 4. Be2 {[%clk 0:02:58]}  Nc6 {[%clk 0:03:00]} 5. d4 {[%clk 0:02:56]}  O-O-O {[%clk 0:02:59]} 6. c3 {[%clk 0:02:53]}  e5 {[%clk 0:02:59]} 7. Be3 {[%clk 0:02:46]}  exd4 {[%clk 0:02:59]} 8. Nxd4 {[%clk 0:02:46]}  Bxe2 {[%clk 0:02:51]} 9. Qxe2 {[%clk 0:02:47]}  Qxg2 {[%clk 0:02:33]} 10. Rf1 {[%clk 0:02:45]}  Ne5 {[%clk 0:02:17]} 11. Nd2 {[%clk 0:02:44]}  c5 {[%clk 0:02:17]} 12. Nb5 {[%clk 0:02:31]}  Nd3+ {[%clk 0:02:13]} 13. Kd1 {[%clk 0:02:28]}  a6 {[%clk 0:02:11]} 14. Na3 {[%clk 0:02:10]}  Nf6 {[%clk 0:02:11]} 15. Kc2 {[%clk 0:02:09]}  Qg6 {[%clk 0:02:11]} 16. Kb3 {[%clk 0:01:59]}  b5 {[%clk 0:01:56]} 17. c4 {[%clk 0:01:54]}  Nb4 {[%clk 0:01:46]} 18. cxb5 {[%clk 0:01:40]}  Rd3+ {[%clk 0:01:41]} 19. Ka4 {[%clk 0:01:39]}  axb5+ {[%clk 0:01:36]} 20. Nxb5 {[%clk 0:01:15]}  Nfd5 {[%clk 0:01:35]} 21. Na7+ {[%clk 0:00:43]}  Kb7 {[%clk 0:01:34]} 22. Bxc5 {[%clk 0:00:25]}  Qa6# {[%clk 0:01:29]} 0-1


[Site "https://www.chess.com"]

[Event "Titled Tuesday Blitz November 14 Late 2023"]
[White "Weisz, Bryan"]
[Black "Santos Flores, Alberto"]
[WhiteFideId "30934133"]
[BlackFideId "3601234"]
[WhiteElo "2434"]
[BlackElo "2562"]
[Result "0-1"]
[Round "6"]
[TimeControl "180+1"]
[Date "2023.11.14"]
[WhiteClock "0:00:34"]
[BlackClock "0:01:33"]
[Board "88"]

1. c3 {[%clk 0:03:00]}  d5 {[%clk 0:02:59]} 2. e4 {[%clk 0:03:00]}  Nf6 {[%clk 0:03:00]} 3. e5 {[%clk 0:03:00]}  Nfd7 {[%clk 0:02:59]} 4. d4 {[%clk 0:02:58]}  e6 {[%clk 0:02:59]} 5. f4 {[%clk 0:02:52]}  c5 {[%clk 0:02:59]} 6. Nf3 {[%clk 0:02:49]}  Nc6 {[%clk 0:02:59]} 7. a3 {[%clk 0:02:46]}  a5 {[%clk 0:02:57]} 8. c4 {[%clk 0:02:32]}  cxd4 {[%clk 0:02:51]} 9. cxd5 {[%clk 0:02:33]}  exd5 {[%clk 0:02:51]} 10. Nxd4 {[%clk 0:02:31]}  Nc5 {[%clk 0:02:51]} 11. Nc3 {[%clk 0:02:27]}  Be7 {[%clk 0:02:48]} 12. Bb5 {[%clk 0:02:07]}  Bd7 {[%clk 0:02:48]} 13. Nxd5 {[%clk 0:01:58]}  Nxd4 {[%clk 0:02:46]} 14. Bxd7+ {[%clk 0:01:50]}  Qxd7 {[%clk 0:02:46]} 15. Nb6 {[%clk 0:01:42]}  Qc6 {[%clk 0:02:20]} 16. Nxa8 {[%clk 0:01:40]}  Qxg2 {[%clk 0:02:20]} 17. Qxd4 {[%clk 0:01:34]}  Qxh1+ {[%clk 0:02:18]} 18. Ke2 {[%clk 0:01:27]}  O-O {[%clk 0:02:13]} 19. Nc7 {[%clk 0:00:59]}  Nb3 {[%clk 0:02:09]} 20. Qc4 {[%clk 0:00:48]}  Nxa1 {[%clk 0:02:06]} 21. Be3 {[%clk 0:00:49]}  Qg2+ {[%clk 0:01:57]} 22. Bf2 {[%clk 0:00:48]}  Bh4 {[%clk 0:01:50]} 23. Qd4 {[%clk 0:00:44]}  Nb3 {[%clk 0:01:44]} 24. Qe3 {[%clk 0:00:44]}  Qxf2+ {[%clk 0:01:44]} 25. Qxf2 {[%clk 0:00:45]}  Bxf2 {[%clk 0:01:44]} 26. Kxf2 {[%clk 0:00:46]}  Rc8 {[%clk 0:01:43]} 27. Nd5 {[%clk 0:00:46]}  Rc2+ {[%clk 0:01:42]} 28. Kf3 {[%clk 0:00:46]}  Rxb2 {[%clk 0:01:42]} 29. f5 {[%clk 0:00:46]}  Nc5 {[%clk 0:01:41]} 30. Ne3 {[%clk 0:00:41]}  Rxh2 {[%clk 0:01:38]} 31. Nc4 {[%clk 0:00:42]}  a4 {[%clk 0:01:36]} 32. Nd6 {[%clk 0:00:42]}  Ra2 {[%clk 0:01:35]} 33. Ke3 {[%clk 0:00:42]}  Rxa3+ {[%clk 0:01:35]} 34. Kd4 {[%clk 0:00:43]}  Nd7 {[%clk 0:01:35]} 35. e6 {[%clk 0:00:43]}  fxe6 {[%clk 0:01:35]} 36. fxe6 {[%clk 0:00:44]}  Nf6 {[%clk 0:01:36]} 37. e7 {[%clk 0:00:42]}  Ra1 {[%clk 0:01:35]} 38. Ne4 {[%clk 0:00:34]}  Kf7 {[%clk 0:01:33]} 0-1


[Site "https://www.chess.com"]

[Event "Titled Tuesday Blitz November 14 Late 2023"]
[White "Buchenau, Frank"]
[Black "The_Straightforward_Rook"]
[WhiteFideId "4604350"]
[WhiteElo "2420"]
[BlackElo "2557"]
[Result "0-1"]
[Round "6"]
[TimeControl "180+1"]
[Date "2023.11.14"]
[WhiteClock "0:00:01"]
[BlackClock "0:01:42"]
[Board "90"]

1. e4 {[%clk 0:03:00]}  c6 {[%clk 0:02:59]} 2. Nf3 {[%clk 0:03:00]}  d5 {[%clk 0:02:59]} 3. Nc3 {[%clk 0:03:00]}  dxe4 {[%clk 0:02:59]} 4. Nxe4 {[%clk 0:03:01]}  Nf6 {[%clk 0:02:59]} 5. Ng3 {[%clk 0:03:00]}  g6 {[%clk 0:02:52]} 6. d4 {[%clk 0:02:57]}  Bg7 {[%clk 0:02:51]} 7. Bd3 {[%clk 0:02:53]}  Bg4 {[%clk 0:02:44]} 8. c3 {[%clk 0:02:53]}  Nbd7 {[%clk 0:02:42]} 9. h3 {[%clk 0:02:51]}  Bxf3 {[%clk 0:02:41]} 10. Qxf3 {[%clk 0:02:52]}  O-O {[%clk 0:02:42]} 11. O-O {[%clk 0:02:52]}  e5 {[%clk 0:02:42]} 12. Re1 {[%clk 0:02:45]}  Re8 {[%clk 0:02:39]} 13. Bg5 {[%clk 0:02:25]}  h6 {[%clk 0:02:38]} 14. Bd2 {[%clk 0:02:14]}  exd4 {[%clk 0:02:34]} 15. cxd4 {[%clk 0:02:13]}  Nd5 {[%clk 0:02:31]} 16. Rxe8+ {[%clk 0:02:07]}  Qxe8 {[%clk 0:02:32]} 17. Re1 {[%clk 0:02:06]}  Qf8 {[%clk 0:02:33]} 18. Ne2 {[%clk 0:01:34]}  Re8 {[%clk 0:02:31]} 19. a3 {[%clk 0:01:27]}  N7f6 {[%clk 0:02:29]} 20. Nc3 {[%clk 0:01:17]}  Rxe1+ {[%clk 0:02:26]} 21. Bxe1 {[%clk 0:01:16]}  Qe7 {[%clk 0:02:22]} 22. Bd2 {[%clk 0:01:05]}  Qe6 {[%clk 0:02:21]} 23. Na4 {[%clk 0:00:56]}  Nd7 {[%clk 0:02:18]} 24. Qe2 {[%clk 0:00:37]}  Qxe2 {[%clk 0:02:15]} 25. Bxe2 {[%clk 0:00:37]}  Bxd4 {[%clk 0:02:16]} 26. Bxh6 {[%clk 0:00:26]}  b5 {[%clk 0:02:15]} 27. Nc3 {[%clk 0:00:24]}  Nxc3 {[%clk 0:02:13]} 28. bxc3 {[%clk 0:00:24]}  Bxc3 {[%clk 0:02:14]} 29. Be3 {[%clk 0:00:22]}  a5 {[%clk 0:02:13]} 30. Kf1 {[%clk 0:00:18]}  b4 {[%clk 0:02:11]} 31. axb4 {[%clk 0:00:18]}  axb4 {[%clk 0:02:11]} 32. Bc4 {[%clk 0:00:17]}  Kf8 {[%clk 0:02:07]} 33. Ke2 {[%clk 0:00:18]}  Ke7 {[%clk 0:02:07]} 34. h4 {[%clk 0:00:16]}  f6 {[%clk 0:02:03]} 35. g4 {[%clk 0:00:16]}  Ne5 {[%clk 0:02:02]} 36. Bd3 {[%clk 0:00:10]}  Nxd3 {[%clk 0:01:52]} 37. Kxd3 {[%clk 0:00:11]}  f5 {[%clk 0:01:50]} 38. Bc5+ {[%clk 0:00:07]}  Ke6 {[%clk 0:01:48]} 39. gxf5+ {[%clk 0:00:06]}  Kxf5 {[%clk 0:01:47]} 40. Kc4 {[%clk 0:00:07]}  Kg4 {[%clk 0:01:45]} 41. Be7 {[%clk 0:00:06]}  Kf3 {[%clk 0:01:44]} 42. Bc5 {[%clk 0:00:05]}  Be1 {[%clk 0:01:43]} 43. Bxb4 {[%clk 0:00:03]}  Bxb4 {[%clk 0:01:40]} 44. Kxb4 {[%clk 0:00:02]}  Kxf2 {[%clk 0:01:41]} 45. Kc5 {[%clk 0:00:03]}  Kg3 {[%clk 0:01:41]} 46. Kxc6 {[%clk 0:00:03]}  Kxh4 {[%clk 0:01:41]} 47. Kd5 {[%clk 0:00:01]}  g5 {[%clk 0:01:42]} 0-1


[Site "https://www.chess.com"]

[Event "Titled Tuesday Blitz November 14 Late 2023"]
[White "Hoffmann, Asa"]
[Black "Ongut, Tamas Gunes"]
[WhiteFideId "2001470"]
[BlackFideId "770280"]
[WhiteElo "2405"]
[BlackElo "2528"]
[Result "0-1"]
[Round "6"]
[TimeControl "180+1"]
[Date "2023.11.14"]
[WhiteClock "0:00:00"]
[BlackClock "0:00:25"]
[Board "93"]

1. d4 {[%clk 0:02:51]}  Nf6 {[%clk 0:02:59]} 2. Bg5 {[%clk 0:02:46]}  Ne4 {[%clk 0:02:54]} 3. Bf4 {[%clk 0:02:45]}  c5 {[%clk 0:02:53]} 4. f3 {[%clk 0:02:40]}  Nf6 {[%clk 0:02:52]} 5. dxc5 {[%clk 0:02:40]}  Qa5+ {[%clk 0:02:49]} 6. Nc3 {[%clk 0:02:40]}  Qxc5 {[%clk 0:02:50]} 7. e4 {[%clk 0:02:39]}  d6 {[%clk 0:02:48]} 8. Qd2 {[%clk 0:02:39]}  a6 {[%clk 0:02:45]} 9. g4 {[%clk 0:02:37]}  Nc6 {[%clk 0:02:45]} 10. g5 {[%clk 0:02:35]}  Nd7 {[%clk 0:02:40]} 11. Nd5 {[%clk 0:02:27]}  Nce5 {[%clk 0:02:22]} 12. Be3 {[%clk 0:02:21]}  Qc6 {[%clk 0:02:22]} 13. b3 {[%clk 0:02:02]}  e6 {[%clk 0:02:21]} 14. Nb4 {[%clk 0:01:53]}  Qc7 {[%clk 0:02:20]} 15. f4 {[%clk 0:01:51]}  Ng4 {[%clk 0:02:20]} 16. Bd4 {[%clk 0:01:45]}  a5 {[%clk 0:02:17]} 17. Nd3 {[%clk 0:01:42]}  e5 {[%clk 0:02:13]} 18. Bb2 {[%clk 0:01:39]}  exf4 {[%clk 0:02:11]} 19. Nxf4 {[%clk 0:01:35]}  Nde5 {[%clk 0:02:02]} 20. Nd5 {[%clk 0:01:29]}  Qd8 {[%clk 0:01:56]} 21. h3 {[%clk 0:01:19]}  Be7 {[%clk 0:01:40]} 22. hxg4 {[%clk 0:01:16]}  Bxg5 {[%clk 0:01:40]} 23. Bb5+ {[%clk 0:01:07]}  Kf8 {[%clk 0:01:38]} 24. Qg2 {[%clk 0:00:57]}  Bh4+ {[%clk 0:01:24]} 25. Kd1 {[%clk 0:00:47]}  Bg5 {[%clk 0:01:13]} 26. Bxe5 {[%clk 0:00:37]}  dxe5 {[%clk 0:01:11]} 27. Nf3 {[%clk 0:00:37]}  Be6 {[%clk 0:00:58]} 28. Be2 {[%clk 0:00:32]}  Bxd5 {[%clk 0:00:56]} 29. exd5 {[%clk 0:00:31]}  Qxd5+ {[%clk 0:00:57]} 30. Ke1 {[%clk 0:00:31]}  Bf4 {[%clk 0:00:55]} 31. Rd1 {[%clk 0:00:29]}  Qc5 {[%clk 0:00:55]} 32. c4 {[%clk 0:00:19]}  a4 {[%clk 0:00:46]} 33. Rf1 {[%clk 0:00:15]}  axb3 {[%clk 0:00:46]} 34. axb3 {[%clk 0:00:15]}  h5 {[%clk 0:00:43]} 35. g5 {[%clk 0:00:13]}  h4 {[%clk 0:00:42]} 36. Nd2 {[%clk 0:00:09]}  Bg3+ {[%clk 0:00:42]} 37. Rf2 {[%clk 0:00:08]}  Qe3 {[%clk 0:00:34]} 38. Ne4 {[%clk 0:00:07]}  Bxf2+ {[%clk 0:00:31]} 39. Nxf2 {[%clk 0:00:06]}  h3 {[%clk 0:00:32]} 40. Qf3 {[%clk 0:00:05]}  Qxg5 {[%clk 0:00:30]} 41. Qxb7 {[%clk 0:00:03]}  Re8 {[%clk 0:00:27]} 42. Qb4+ {[%clk 0:00:02]}  Kg8 {[%clk 0:00:27]} 43. Qd2 {[%clk 0:00:02]}  Qg1+ {[%clk 0:00:26]} 44. Bf1 {[%clk 0:00:01]}  e4 {[%clk 0:00:26]} 45. Qf4 {[%clk 0:00:00]}  e3 {[%clk 0:00:25]} 0-1


[Site "https://www.chess.com"]

[Event "Titled Tuesday Blitz November 14 Late 2023"]
[White "RodokininEV"]
[Black "Kubatko, Ivan"]
[BlackFideId "24111473"]
[WhiteElo "2515"]
[BlackElo "2402"]
[Result "0-1"]
[Round "6"]
[TimeControl "180+1"]
[Date "2023.11.14"]
[WhiteClock "0:00:00"]
[BlackClock "0:00:02"]
[Board "95"]

1. d4 {[%clk 0:03:00]}  d5 {[%clk 0:02:59]} 2. c4 {[%clk 0:02:54]}  e6 {[%clk 0:02:59]} 3. Nc3 {[%clk 0:02:54]}  c5 {[%clk 0:02:59]} 4. cxd5 {[%clk 0:02:54]}  cxd4 {[%clk 0:02:59]} 5. Qa4+ {[%clk 0:02:54]}  Bd7 {[%clk 0:02:59]} 6. Qxd4 {[%clk 0:02:54]}  exd5 {[%clk 0:03:00]} 7. Qxd5 {[%clk 0:02:54]}  Nf6 {[%clk 0:02:58]} 8. Qd1 {[%clk 0:02:54]}  Nc6 {[%clk 0:02:58]} 9. e3 {[%clk 0:02:54]}  Bc5 {[%clk 0:02:58]} 10. Nf3 {[%clk 0:02:53]}  Qe7 {[%clk 0:02:58]} 11. Be2 {[%clk 0:02:51]}  O-O-O {[%clk 0:02:59]} 12. Qc2 {[%clk 0:02:47]}  Kb8 {[%clk 0:02:53]} 13. a3 {[%clk 0:02:46]}  g5 {[%clk 0:02:30]} 14. b4 {[%clk 0:02:36]}  Bb6 {[%clk 0:02:07]} 15. Na4 {[%clk 0:02:24]}  Bc7 {[%clk 0:01:46]} 16. Nc5 {[%clk 0:01:59]}  Bc8 {[%clk 0:01:36]} 17. O-O {[%clk 0:01:52]}  g4 {[%clk 0:01:32]} 18. Nd4 {[%clk 0:01:51]}  Qe5 {[%clk 0:01:14]} 19. Nxc6+ {[%clk 0:01:48]}  bxc6 {[%clk 0:01:14]} 20. g3 {[%clk 0:01:43]}  Qxa1 {[%clk 0:01:13]} 21. Bb2 {[%clk 0:01:40]}  Qa2 {[%clk 0:00:53]} 22. Bc4 {[%clk 0:01:26]}  Bf5 {[%clk 0:00:51]} 23. Qc1 {[%clk 0:01:18]}  Qb1 {[%clk 0:00:38]} 24. Qxb1 {[%clk 0:01:13]}  Bxb1 {[%clk 0:00:39]} 25. Bxf6 {[%clk 0:01:12]}  Bf5 {[%clk 0:00:28]} 26. Bxh8 {[%clk 0:01:05]}  Rxh8 {[%clk 0:00:28]} 27. Rd1 {[%clk 0:00:52]}  f6 {[%clk 0:00:17]} 28. Be6 {[%clk 0:00:34]}  Bxe6 {[%clk 0:00:12]} 29. Nxe6 {[%clk 0:00:35]}  Be5 {[%clk 0:00:09]} 30. Rd7 {[%clk 0:00:29]}  h5 {[%clk 0:00:08]} 31. a4 {[%clk 0:00:17]}  h4 {[%clk 0:00:08]} 32. Rd8+ {[%clk 0:00:16]}  Rxd8 {[%clk 0:00:08]} 33. Nxd8 {[%clk 0:00:17]}  Kc7 {[%clk 0:00:04]} 34. Nf7 {[%clk 0:00:16]}  hxg3 {[%clk 0:00:01]} 35. hxg3 {[%clk 0:00:12]}  Bc3 {[%clk 0:00:01]} 36. b5 {[%clk 0:00:10]}  cxb5 {[%clk 0:00:02]} 37. axb5 {[%clk 0:00:10]}  Kb6 {[%clk 0:00:03]} 38. Kf1 {[%clk 0:00:08]}  Kxb5 {[%clk 0:00:03]} 39. Ke2 {[%clk 0:00:08]}  a5 {[%clk 0:00:03]} 40. Kd1 {[%clk 0:00:09]}  a4 {[%clk 0:00:03]} 41. Kc2 {[%clk 0:00:09]}  Be1 {[%clk 0:00:04]} 42. e4 {[%clk 0:00:07]}  Bxf2 {[%clk 0:00:04]} 43. Nd6+ {[%clk 0:00:05]}  Kc6 {[%clk 0:00:03]} 44. Ne8 {[%clk 0:00:05]}  Bd4 {[%clk 0:00:03]} 45. Ng7 {[%clk 0:00:04]}  Bf2 {[%clk 0:00:02]} 46. Nf5 {[%clk 0:00:04]}  Bc5 {[%clk 0:00:02]} 47. Kb2 {[%clk 0:00:04]}  Bd6 {[%clk 0:00:02]} 48. Ka2 {[%clk 0:00:00]}  Bc5 {[%clk 0:00:02]} 0-1


[Site "https://www.chess.com"]

[Event "Titled Tuesday Blitz November 14 Late 2023"]
[White "Kohler, Aran"]
[Black "Gasparyan, David"]
[WhiteFideId "1002856"]
[BlackFideId "13311980"]
[WhiteElo "2289"]
[BlackElo "2493"]
[Result "1-0"]
[Round "6"]
[TimeControl "180+1"]
[Date "2023.11.14"]
[WhiteClock "0:00:07"]
[BlackClock "0:00:03"]
[Board "105"]

1. d4 {[%clk 0:03:00]}  Nf6 {[%clk 0:02:33]} 2. Nf3 {[%clk 0:03:01]}  g6 {[%clk 0:02:31]} 3. Bg5 {[%clk 0:03:01]}  Bg7 {[%clk 0:02:31]} 4. Nbd2 {[%clk 0:03:01]}  h6 {[%clk 0:02:30]} 5. Bh4 {[%clk 0:03:01]}  c5 {[%clk 0:02:29]} 6. e3 {[%clk 0:02:59]}  O-O {[%clk 0:02:27]} 7. c3 {[%clk 0:02:59]}  b6 {[%clk 0:02:25]} 8. Bd3 {[%clk 0:02:59]}  Bb7 {[%clk 0:02:26]} 9. Bxf6 {[%clk 0:02:55]}  exf6 {[%clk 0:02:22]} 10. Qb3 {[%clk 0:02:46]}  Qc8 {[%clk 0:02:12]} 11. Bxg6 {[%clk 0:02:41]}  c4 {[%clk 0:02:10]} 12. Nxc4 {[%clk 0:02:40]}  Bd5 {[%clk 0:02:10]} 13. Bd3 {[%clk 0:02:38]}  Qc6 {[%clk 0:01:55]} 14. Nfd2 {[%clk 0:01:59]}  b5 {[%clk 0:01:47]} 15. Na5 {[%clk 0:01:50]}  Qd6 {[%clk 0:01:46]} 16. Qb4 {[%clk 0:01:27]}  Qe6 {[%clk 0:01:24]} 17. O-O {[%clk 0:01:00]}  Nc6 {[%clk 0:01:04]} 18. Nxc6 {[%clk 0:00:59]}  Bxc6 {[%clk 0:01:05]} 19. e4 {[%clk 0:00:59]}  a5 {[%clk 0:01:02]} 20. Qb3 {[%clk 0:00:56]}  d5 {[%clk 0:00:55]} 21. exd5 {[%clk 0:00:47]}  Bxd5 {[%clk 0:00:53]} 22. Qc2 {[%clk 0:00:48]}  Rac8 {[%clk 0:00:38]} 23. Bf5 {[%clk 0:00:43]}  Qc6 {[%clk 0:00:34]} 24. Bxc8 {[%clk 0:00:41]}  Bxg2 {[%clk 0:00:33]} 25. Rfe1 {[%clk 0:00:41]}  Rxc8 {[%clk 0:00:30]} 26. f3 {[%clk 0:00:29]}  Bh3 {[%clk 0:00:27]} 27. Ne4 {[%clk 0:00:28]}  Qd5 {[%clk 0:00:24]} 28. Qf2 {[%clk 0:00:23]}  f5 {[%clk 0:00:22]} 29. Ng3 {[%clk 0:00:21]}  b4 {[%clk 0:00:20]} 30. Nh5 {[%clk 0:00:20]}  Qd6 {[%clk 0:00:10]} 31. cxb4 {[%clk 0:00:17]}  f4 {[%clk 0:00:09]} 32. Nxg7 {[%clk 0:00:08]}  Kxg7 {[%clk 0:00:10]} 33. Kh1 {[%clk 0:00:08]}  Kh8 {[%clk 0:00:09]} 34. Rg1 {[%clk 0:00:08]}  axb4 {[%clk 0:00:08]} 35. Rae1 {[%clk 0:00:09]}  Qd5 {[%clk 0:00:07]} 36. Re4 {[%clk 0:00:08]}  Qf5 {[%clk 0:00:05]} 37. Qh4 {[%clk 0:00:09]}  Rc2 {[%clk 0:00:04]} 38. Qxh6+ {[%clk 0:00:07]}  Qh7 {[%clk 0:00:03]} 39. Re8# {[%clk 0:00:07]} 1-0


[Site "https://www.chess.com"]